[Event "2nd FIDE WCC Rapid G10"]
[Site "Minsk"]
[Date "2018.06.22"]
[Round "1"]
[White "Dalatsenka, Volha"]
[Black "Shukhman, Anna"]
[Result "0-1"]
[ECO "E91"]
[WhiteElo "1128"]
[BlackElo "1577"]
[Annotator "NA RC"]
[PlyCount "148"]
[EventDate "2018.06.22"]
[EventType "rapid"]
[EventCountry "BLR"]
[SourceTitle "playchess.com"]
[Source "ChessBase"]
[SourceQuality "1"]
[TimeControl "600+5"]

1. d4 {[%emt 0:00:00]} Nf6 {[%emt 0:00:03]} 2. c4 {[%emt 0:00:00]} g6 {[%emt 0:00:02]} 3. Nc3 {[%emt 0:00:00]} Bg7 {[%emt 0:00:01]} 4. e4 {[%emt 0:00:00]} d6 {[%emt 0:00:01]} 5. Be2 {[%emt 0:00:00]} O-O {[%emt 0:00:03]} 6. Nf3 {[%emt 0:00:01]} Bg4 {[%emt 0:00:09]} 7. O-O {[%emt 0:00:02]} Nfd7 {[%emt 0:00:16]} 8. h3 {[%emt 0:00:04]} Bxf3 {[%emt 0:00:02]} 9. Bxf3 {[%emt 0:00:02]} Nc6 {[%emt 0:00:13]} 10. Be3 {[%emt 0:00:25]} e5 {[%emt 0:00:21]} 11. d5 {[%emt 0:00:05]} Ne7 {[%emt 0:00:02]} 12. Bg5 {[%emt 0:00:28]} h6 {[%emt 0:01:04]} 13. Be3 {[%emt 0:00:16]} f5 {[%emt 0:00:04]} 14. Qd2 {[%emt 0:00:08]} f4 {[%emt 0:00:03]} 15. Bxf4 {[%emt 0:01:08]} exf4 {[%emt 0:00:11]} 16. Bg4 {[%emt 0:00:04]} Ne5 {[%emt 0:00:10]} 17. Be6+ {[%emt 0:00:16]} Kh7 {[%emt 0:00:07]} 18. b3 {[%emt 0:00:39]} c6 {[%emt 0:02:40]} 19. Rac1 {[%emt 0:00:24]} f3 {[%emt 0:00:52]} 20. g3 {[%emt 0:01:51]} h5 {[%emt 0:00:19]} 21. Nd1 {[%emt 0:02:15]} Ng8 {[%emt 0:01:15]} 22. h4 {[%emt 0:00:12]} Nf6 {[%emt 0:00:16]} 23. Ne3 {[%emt 0:00:40]} Nxe4 {[%emt 0:00:44]} 24. Qc2 {[%emt 0:00:42]} Nc5 {[%emt 0:00:07]} 25. Bh3 {[%emt 0:00:17]} Bh6 {[%emt 0:00:33]} 26. Rcd1 {[%emt 0:00:28]} Qf6 {[%emt 0:00:37]} 27. Qd2 {[%emt 0:00:25]} Rad8 {[%emt 0:00:13]} 28. Qd4 {[%emt 0:00:37]} Bxe3 {[%emt 0:00:22]} 29. Qxe3 {[%emt 0:00:02]} cxd5 {[%emt 0:00:04]} 30. Rxd5 {[%emt 0:00:08]} Rfe8 {[%emt 0:00:08]} 31. Qd4 {[%emt 0:00:04]} Qe7 {[%emt 0:00:26]} 32. Rd1 {[%emt 0:00:12]} Nc6 {[%emt 0:00:11]} 33. Qd2 {[%emt 0:00:07]} Qe2 {[%emt 0:00:33]} 34. Qxe2 {[%emt 0:00:08]} fxe2 {[%emt 0:00:03]} 35. Re1 {[%emt 0:00:05]} Nb4 {[%emt 0:00:02]} 36. Rd2 {[%emt 0:00:09]} Re5 {[%emt 0:00:26]} 37. Rdxe2 {[%emt 0:00:03]} Rde8 {[%emt 0:00:01]} 38. Rxe5 {[%emt 0:00:02]} Rxe5 {[%emt 0:00:01]} 39. Rxe5 {[%emt 0:00:01]} dxe5 {[%emt 0:00:01]} 40. a3 {[%emt 0:00:03]} Nc2 {[%emt 0:00:01]} 41. b4 {[%emt 0:00:02]} Ne4 {[%emt 0:00:04]} 42. f3 {[%emt 0:00:03]} Nd2 {[%emt 0:00:02]} 43. Bc8 {[%emt 0:00:07]} b6 {[%emt 0:00:03]} 44. c5 {[%emt 0:00:02]} bxc5 {[%emt 0:00:03]} 45. bxc5 {[%emt 0:00:01]} Nxf3+ {[%emt 0:00:04]} 46. Kf2 {[%emt 0:00:01]} Nfd4 {[%emt 0:00:02]} 47. Bd7 {[%emt 0:00:10]} Nxa3 {[%emt 0:00:02]} 48. c6 {[%emt 0:00:01]} Nab5 {[%emt 0:00:01]} 49. Ke3 {[%emt 0:00:06]} a5 {[%emt 0:00:01]} 50. Ke4 {[%emt 0:00:07]} a4 {[%emt 0:00:04]} 51. c7 {[%emt 0:00:02]} Nxc7 {[%emt 0:00:02]} 52. Bxa4 {[%emt 0:00:02]} Ne2 {[%emt 0:00:05]} 53. Kxe5 {[%emt 0:00:05]} Nxg3 {[%emt 0:00:02]} 54. Kd6 {[%emt 0:00:17]} Nf5+ {[%emt 0:00:05]} 55. Kxc7 {[%emt 0:00:02]} Nxh4 {[%emt 0:00:01]} 56. Kd6 {[%emt 0:00:02]} Nf5+ {[%emt 0:00:04]} 57. Ke5 {[%emt 0:00:02]} Kh6 {[%emt 0:00:03]} 58. Bc2 {[%emt 0:00:01]} Ne3 {[%emt 0:00:03]} 59. Bd3 {[%emt 0:00:04]} g5 {[%emt 0:00:03]} 60. Ke4 {[%emt 0:00:03]} Ng4 {[%emt 0:00:02]} 61. Be2 {[%emt 0:00:06]} Nf6+ {[%emt 0:00:02]} 62. Kf3 {[%emt 0:00:03]} g4+ {[%emt 0:00:05]} 63. Kg3 {[%emt 0:00:03]} Kg5 {[%emt 0:00:01]} 64. Kg2 {[%emt 0:00:03]} h4 {[%emt 0:00:02]} 65. Kh2 {[%emt 0:00:06]} Ne4 {[%emt 0:00:05]} 66. Kg2 {[%emt 0:00:31]} h3+ {[%emt 0:00:08]} 67. Kh2 {[%emt 0:00:01]} Kh4 {[%emt 0:00:02]} 68. Bxg4 {[%emt 0:00:28]} Kxg4 {[%emt 0:00:03]} 69. Kg1 {[%emt 0:00:13]} Kg3 {[%emt 0:00:01]} 70. Kh1 {[%emt 0:00:02]} Nf2+ {[%emt 0:00:02]} 71. Kg1 {[%emt 0:00:02]} h2+ {[%emt 0:00:01]} 72. Kf1 {[%emt 0:00:01]} h1=Q+ {[%emt 0:00:04]} 73. Ke2 {[%emt 0:00:01]} Qd1+ {[%emt 0:00:02]} 74. Ke3 {[%emt 0:00:01]} Qd3# {[%emt 0:00:01] Kd4} 0-1

[Event "2nd FIDE WCC Rapid G10"]
[Site "Minsk"]
[Date "2018.06.22"]
[Round "1"]
[White "Liepina, Elza"]
[Black "Shvedova, Alexandra"]
[Result "0-1"]
[ECO "B50"]
[WhiteElo "1112"]
[BlackElo "1758"]
[Annotator "NA RC"]
[PlyCount "70"]
[EventDate "2018.06.22"]
[EventType "rapid"]
[EventCountry "BLR"]
[SourceTitle "playchess.com"]
[Source "ChessBase"]
[SourceQuality "1"]
[TimeControl "600+5"]

1. e4 {[%emt 0:00:00]} c5 {[%emt 0:00:01]} 2. Nf3 {[%emt 0:00:00]} d6 {[%emt 0:00:01]} 3. Bc4 {[%emt 0:00:04]} Nf6 {[%emt 0:00:15]} 4. Nc3 {[%emt 0:00:06]} a6 {[%emt 0:00:04]} 5. O-O {[%emt 0:00:06]} e6 {[%emt 0:00:03]} 6. d4 {[%emt 0:00:33]} cxd4 {[%emt 0:00:02]} 7. Nxd4 {[%emt 0:00:09]} Be7 {[%emt 0:00:01]} 8. Bg5 {[%emt 0:00:25]} O-O {[%emt 0:00:04]} 9. Bxf6 {[%emt 0:00:05]} Bxf6 {[%emt 0:00:07]} 10. h3 {[%emt 0:00:38]} Nc6 {[%emt 0:00:20]} 11. Nxc6 {[%emt 0:00:15]} bxc6 {[%emt 0:00:02]} 12. b4 {[%emt 0:00:10]} Bxc3 {[%emt 0:00:02]} 13. Rb1 {[%emt 0:00:11]} Bf6 {[%emt 0:00:02]} 14. a3 {[%emt 0:00:14]} d5 {[%emt 0:00:10]} 15. exd5 {[%emt 0:00:15]} cxd5 {[%emt 0:00:01]} 16. Ba2 {[%emt 0:00:08]} Bd7 {[%emt 0:00:16]} 17. Re1 {[%emt 0:00:24]} Rc8 {[%emt 0:00:12]} 18. Rc1 {[%emt 0:00:34]} Ba4 {[%emt 0:00:17]} 19. Bb3 {[%emt 0:00:24]} Bxb3 {[%emt 0:00:10]} 20. cxb3 {[%emt 0:00:05]} Bc3 {[%emt 0:00:24]} 21. Rf1 {[%emt 0:00:18]} Qf6 {[%emt 0:00:17]} 22. Qd3 {[%emt 0:00:51]} a5 {[%emt 0:01:28]} 23. bxa5 {[%emt 0:00:51]} Bxa5 {[%emt 0:00:02]} 24. Rxc8 {[%emt 0:00:07]} Rxc8 {[%emt 0:00:01]} 25. Qa6 {[%emt 0:00:25]} Qd8 {[%emt 0:00:02]} 26. b4 {[%emt 0:00:08]} Bc7 {[%emt 0:00:25]} 27. Rc1 {[%emt 0:00:27]} Bh2+ {[%emt 0:00:01]} 28. Kxh2 {[%emt 0:00:28]} Rxc1 {[%emt 0:00:02]} 29. a4 {[%emt 0:00:56]} Qb8+ {[%emt 0:00:12]} 30. g3 {[%emt 0:00:30]} Qxb4 {[%emt 0:00:00]} 31. h4 {[%emt 0:00:48]} Qc5 {[%emt 0:00:00]} 32. Kh3 {[%emt 0:00:28]} h6 {[%emt 0:00:00]} 33. h5 {[%emt 0:00:05]} Qxf2 {[%emt 0:00:00]} 34. Qd3 {[%emt 0:00:21]} Rh1+ {[%emt 0:00:00]} 35. Kg4 {[%emt 0:00:05]} f5+ {[%emt 0:00:00]} 0-1

[Event "2nd FIDE WCC Rapid G10"]
[Site "Minsk"]
[Date "2018.06.22"]
[Round "1"]
[White "Pavlenko, Darya"]
[Black "Zavivaeva, Evelina"]
[Result "0-1"]
[ECO "C00"]
[WhiteElo "1094"]
[BlackElo "1390"]
[Annotator "NA RC"]
[PlyCount "85"]
[EventDate "2018.06.22"]
[EventType "rapid"]
[EventCountry "BLR"]
[SourceTitle "playchess.com"]
[Source "ChessBase"]
[SourceQuality "1"]
[TimeControl "600+5"]

1. e4 {[%emt 0:00:00]} e6 {[%emt 0:00:05]} 2. Nf3 {[%emt 0:00:00]} d5 {[%emt 0:00:07]} 3. e5 {[%emt 0:00:02]} Bd7 {[%emt 0:00:04]} 4. d4 {[%emt 0:00:10]} a6 {[%emt 0:00:06]} 5. Be3 {[%emt 0:00:09]} Bb5 {[%emt 0:00:02]} 6. Bd3 {[%emt 0:00:19]} Bxd3 {[%emt 0:00:23]} 7. Qxd3 {[%emt 0:00:02]} h5 {[%emt 0:00:21]} 8. Nbd2 {[%emt 0:00:09]} Nh6 {[%emt 0:00:38]} 9. O-O-O {[%emt 0:00:30]} Be7 {[%emt 0:00:31]} 10. Rhe1 {[%emt 0:00:16]} Nc6 {[%emt 0:00:04]} 11. Qb3 {[%emt 0:00:32]} b5 {[%emt 0:00:47]} 12. Qc3 {[%emt 0:00:33]} Qd7 {[%emt 0:00:12]} 13. Bg5 {[%emt 0:01:08]} b4 {[%emt 0:02:44]} 14. Qe3 {[%emt 0:00:18]} Nf5 {[%emt 0:00:05]} 15. Qd3 {[%emt 0:00:17]} Nfxd4 {[%emt 0:02:21]} 16. Nxd4 {[%emt 0:01:08]} Bxg5 {[%emt 0:00:30]} 17. Nxc6 {[%emt 0:00:25]} Qxc6 {[%emt 0:00:01]} 18. Kb1 {[%emt 0:00:45]} Be7 {[%emt 0:01:09]} 19. f4 {[%emt 0:00:34]} g6 {[%emt 0:00:27]} 20. Nb3 {[%emt 0:00:25]} O-O-O {[%emt 0:00:32]} 21. Nd4 {[%emt 0:01:06]} Qc4 {[%emt 0:00:10]} 22. Qxc4 {[%emt 0:00:14]} dxc4 {[%emt 0:00:03]} 23. Nc6 {[%emt 0:00:20]} Rxd1+ {[%emt 0:00:20]} 24. Rxd1 {[%emt 0:00:02]} Bc5 {[%emt 0:00:03]} 25. b3 {[%emt 0:00:16]} c3 {[%emt 0:00:14]} 26. Rd3 {[%emt 0:00:38]} Rf8 {[%emt 0:00:09]} 27. Kc1 {[%emt 0:00:08]} Rg8 {[%emt 0:00:04]} 28. Kd1 {[%emt 0:00:03]} g5 {[%emt 0:00:02]} 29. g3 {[%emt 0:00:07]} gxf4 {[%emt 0:00:02]} 30. gxf4 {[%emt 0:00:12]} Rg1+ {[%emt 0:00:01]} 31. Ke2 {[%emt 0:00:01]} Rg2+ {[%emt 0:00:01]} 32. Kf3 {[%emt 0:00:02]} Rf2+ {[%emt 0:00:09]} 33. Kg3 {[%emt 0:00:16]} Rxc2 {[%emt 0:00:03]} 34. Rd8+ {[%emt 0:00:15]} Kb7 {[%emt 0:00:05]} 35. Na5+ {[%emt 0:00:02]} Kb6 {[%emt 0:00:13]} 36. Nc4+ {[%emt 0:00:02]} Kb7 {[%emt 0:00:09]} 37. Na5+ {[%emt 0:00:05]} Kb6 {[%emt 0:00:03]} 38. Nc4+ {[%emt 0:00:01]} Ka7 {[%emt 0:00:07]} 39. Rd7 {[%emt 0:00:11]} Kb7 {[%emt 0:00:06]} 40. Rxf7 {[%emt 0:00:03]} Rxa2 {[%emt 0:00:04]} 41. Nd6+ {[%emt 0:00:37]} Kc6 {[%emt 0:00:04]} 42. Nc4 {[%emt 0:00:10]} c2 {[%emt 0:00:05]} 43. Rf6 {[%emt 0:00:47]} 0-1

[Event "2nd FIDE WCC Rapid G10"]
[Site "Minsk"]
[Date "2018.06.22"]
[Round "1"]
[White "Shenker, Angelina"]
[Black "Marchenko, Yelyzaveta"]
[Result "0-1"]
[ECO "A40"]
[WhiteElo "1035"]
[BlackElo "1510"]
[Annotator "NA RC"]
[PlyCount "136"]
[EventDate "2018.06.22"]
[EventType "rapid"]
[EventCountry "BLR"]
[SourceTitle "playchess.com"]
[Source "ChessBase"]
[SourceQuality "1"]
[TimeControl "600+5"]

1. d4 {[%emt 0:00:00]} e6 {[%emt 0:00:00]} 2. c4 {[%emt 0:00:00]} b6 {[%emt 0:00:01]} 3. Nc3 {[%emt 0:00:01]} Bb7 {[%emt 0:00:02]} 4. e4 {[%emt 0:00:04]} Bb4 {[%emt 0:00:01]} 5. Nge2 {[%emt 0:00:19]} Bxe4 {[%emt 0:00:06]} 6. Bd2 {[%emt 0:00:05]} Bb7 {[%emt 0:00:04]} 7. a3 {[%emt 0:00:03]} Bxc3 {[%emt 0:00:01]} 8. Nxc3 {[%emt 0:00:02]} Nf6 {[%emt 0:00:01]} 9. Bd3 {[%emt 0:00:03]} d6 {[%emt 0:00:10]} 10. O-O {[%emt 0:00:04]} O-O {[%emt 0:00:03]} 11. Bg5 {[%emt 0:00:12]} Nbd7 {[%emt 0:00:08]} 12. Qc2 {[%emt 0:00:07]} h6 {[%emt 0:00:07]} 13. Bh4 {[%emt 0:00:03]} Re8 {[%emt 0:00:22]} 14. Be4 {[%emt 0:00:29]} Bxe4 {[%emt 0:01:27]} 15. Nxe4 {[%emt 0:00:03]} Qe7 {[%emt 0:00:14]} 16. h3 {[%emt 0:00:33]} c5 {[%emt 0:00:28]} 17. Rad1 {[%emt 0:01:33]} Red8 {[%emt 0:01:12]} 18. Rfe1 {[%emt 0:01:02]} Rac8 {[%emt 0:00:42]} 19. Bg3 {[%emt 0:00:41]} Nxe4 {[%emt 0:00:06]} 20. Qxe4 {[%emt 0:00:11]} Nf6 {[%emt 0:00:57]} 21. Qc2 {[%emt 0:00:58]} cxd4 {[%emt 0:00:19]} 22. Rxd4 {[%emt 0:00:05]} b5 {[%emt 0:00:27]} 23. b3 {[%emt 0:00:18]} bxc4 {[%emt 0:00:02]} 24. Rxc4 {[%emt 0:00:11]} Rxc4 {[%emt 0:00:02]} 25. Qxc4 {[%emt 0:00:03]} d5 {[%emt 0:00:01]} 26. Qc1 {[%emt 0:00:28]} Qb7 {[%emt 0:00:18]} 27. b4 {[%emt 0:00:03]} Rc8 {[%emt 0:00:01]} 28. Qb2 {[%emt 0:00:05]} Qc6 {[%emt 0:00:24]} 29. Re2 {[%emt 0:00:40]} Qc1+ {[%emt 0:00:14]} 30. Qxc1 {[%emt 0:00:01]} Rxc1+ {[%emt 0:00:01]} 31. Kh2 {[%emt 0:00:01]} Rc3 {[%emt 0:00:44]} 32. Ra2 {[%emt 0:00:07]} Ne4 {[%emt 0:00:24]} 33. Be5 {[%emt 0:00:07]} Rc4 {[%emt 0:00:07]} 34. f3 {[%emt 0:00:08]} Nf6 {[%emt 0:00:03]} 35. Bxf6 {[%emt 0:00:07]} gxf6 {[%emt 0:00:01]} 36. Kg3 {[%emt 0:00:02]} e5 {[%emt 0:00:23]} 37. Rd2 {[%emt 0:00:11]} d4 {[%emt 0:00:00]} 38. Kg4 {[%emt 0:00:27]} Rc3 {[%emt 0:00:09]} 39. Kf5 {[%emt 0:00:40]} Kg7 {[%emt 0:00:33]} 40. Ke4 {[%emt 0:00:07]} Rxa3 {[%emt 0:00:10]} 41. Rb2 {[%emt 0:00:16]} Re3+ {[%emt 0:00:13]} 42. Kd5 {[%emt 0:00:09]} d3 {[%emt 0:00:20]} 43. Rd2 {[%emt 0:00:03]} f5 {[%emt 0:00:11]} 44. Kc4 {[%emt 0:00:22]} e4 {[%emt 0:00:01]} 45. fxe4 {[%emt 0:00:17]} fxe4 {[%emt 0:00:01]} 46. Kc3 {[%emt 0:00:23]} f5 {[%emt 0:00:19]} 47. Rf2 {[%emt 0:00:13]} Kg6 {[%emt 0:00:14]} 48. Kd2 {[%emt 0:00:02]} Re2+ {[%emt 0:00:11]} 49. Rxe2 {[%emt 0:00:04]} dxe2 {[%emt 0:00:00]} 50. Kxe2 {[%emt 0:00:01]} Kg5 {[%emt 0:00:02]} 51. Ke3 {[%emt 0:00:00]} h5 {[%emt 0:00:03]} 52. g3 {[%emt 0:00:04]} h4 {[%emt 0:00:06]} 53. gxh4+ {[%emt 0:00:13]} Kxh4 {[%emt 0:00:03]} 54. b5 {[%emt 0:00:23]} Kxh3 {[%emt 0:00:04]} 55. Kf4 {[%emt 0:00:00]} Kg2 {[%emt 0:00:03]} 56. Ke3 {[%emt 0:00:03]} Kg3 {[%emt 0:00:01]} 57. Kd4 {[%emt 0:00:11]} Kf3 {[%emt 0:00:01]} 58. Kc5 {[%emt 0:00:06]} e3 {[%emt 0:00:02]} 59. Kc6 {[%emt 0:00:01]} e2 {[%emt 0:00:01]} 60. Kb7 {[%emt 0:00:00]} e1=Q {[%emt 0:00:03]} 61. Kxa7 {[%emt 0:00:03]} Qa5+ {[%emt 0:00:02]} 62. Kb7 {[%emt 0:00:05]} Qxb5+ {[%emt 0:00:01]} 63. Kc7 {[%emt 0:00:01]} Qa6 {[%emt 0:00:02]} 64. Kd7 {[%emt 0:00:04]} Ke4 {[%emt 0:00:02]} 65. Kc7 {[%emt 0:00:01]} Kd5 {[%emt 0:00:01]} 66. Kd7 {[%emt 0:00:02]} Qb7+ {[%emt 0:00:01]} 67. Ke8 {[%emt 0:00:04]} Ke6 {[%emt 0:00:02]} 68. Kf8 {[%emt 0:00:04]} Qf7# {[%emt 0:00:00]} 0-1

[Event "2nd FIDE WCC Rapid G10"]
[Site "Minsk"]
[Date "2018.06.22"]
[Round "2"]
[White "Shvedova, Alexandra"]
[Black "Nguyen, Binh Vy"]
[Result "1-0"]
[ECO "B33"]
[WhiteElo "1758"]
[BlackElo "1216"]
[Annotator "NA RC"]
[PlyCount "85"]
[EventDate "2018.06.22"]
[EventType "rapid"]
[EventCountry "BLR"]
[SourceTitle "playchess.com"]
[Source "ChessBase"]
[SourceQuality "1"]
[TimeControl "600+5"]

1. e4 {[%emt 0:00:00]} c5 {[%emt 0:00:01]} 2. Ne2 {[%emt 0:00:00]} e6 {[%emt 0:00:01]} 3. d4 {[%emt 0:00:00]} cxd4 {[%emt 0:00:02]} 4. Nxd4 {[%emt 0:00:01]} Nf6 {[%emt 0:00:01]} 5. Nc3 {[%emt 0:00:02]} Nc6 {[%emt 0:00:02]} 6. Ndb5 {[%emt 0:00:03]} d6 {[%emt 0:00:03]} 7. Bf4 {[%emt 0:00:05]} e5 {[%emt 0:00:04]} 8. Bg5 {[%emt 0:00:01]} a6 {[%emt 0:00:02]} 9. Na3 {[%emt 0:00:01]} b5 {[%emt 0:00:01]} 10. Nd5 {[%emt 0:00:01]} Be7 {[%emt 0:00:02]} 11. Bxf6 {[%emt 0:00:02]} Bxf6 {[%emt 0:00:01]} 12. c4 {[%emt 0:00:02]} bxc4 {[%emt 0:00:07]} 13. Nxc4 {[%emt 0:00:06]} Nd4 {[%emt 0:00:19]} 14. Ndb6 {[%emt 0:01:17]} Rb8 {[%emt 0:00:26]} 15. Nxc8 {[%emt 0:00:11]} Rxc8 {[%emt 0:00:02]} 16. Qa4+ {[%emt 0:00:09]} Ke7 {[%emt 0:01:44]} 17. Bd3 {[%emt 0:00:31]} Ra8 {[%emt 0:00:35]} 18. O-O {[%emt 0:00:08]} Re8 {[%emt 0:00:01]} 19. Qb4 {[%emt 0:00:44]} a5 {[%emt 0:00:58]} 20. Qb7+ {[%emt 0:00:59]} Kf8 {[%emt 0:00:04]} 21. Qd5 {[%emt 0:00:08]} Be7 {[%emt 0:00:08]} 22. f4 {[%emt 0:00:27]} Kg8 {[%emt 0:01:41]} 23. fxe5 {[%emt 0:00:06]} Ne6 {[%emt 0:00:35]} 24. exd6 {[%emt 0:00:13]} Bf6 {[%emt 0:00:06]} 25. e5 {[%emt 0:00:12]} Bg5 {[%emt 0:00:05]} 26. Qe4 {[%emt 0:00:37]} g6 {[%emt 0:00:13]} 27. Qf3 {[%emt 0:00:07]} Ra7 {[%emt 0:00:20]} 28. Qf2 {[%emt 0:00:36]} Rb7 {[%emt 0:00:18]} 29. Be4 {[%emt 0:00:11]} Rb4 {[%emt 0:00:36]} 30. Qxf7+ {[%emt 0:00:13]} Kh8 {[%emt 0:00:01]} 31. Bd5 {[%emt 0:00:14]} Ng7 {[%emt 0:00:27]} 32. d7 {[%emt 0:00:46]} Rg8 {[%emt 0:00:45]} 33. Qxg8+ {[%emt 0:00:02]} Qxg8 {[%emt 0:00:01]} 34. Bxg8 {[%emt 0:00:02]} Kxg8 {[%emt 0:00:02]} 35. Rad1 {[%emt 0:00:45]} Ne6 {[%emt 0:00:03]} 36. Nd6 {[%emt 0:00:20]} Rxb2 {[%emt 0:00:15]} 37. Nf7 {[%emt 0:00:14]} Be3+ {[%emt 0:00:30]} 38. Kh1 {[%emt 0:00:03]} Rxa2 {[%emt 0:00:06]} 39. d8=Q+ {[%emt 0:00:10]} Nxd8 {[%emt 0:00:01]} 40. Nxd8 {[%emt 0:00:21]} Bg5 {[%emt 0:00:11]} 41. Ne6 {[%emt 0:00:01]} Be7 {[%emt 0:00:01]} 42. Rd8+ {[%emt 0:00:05]} Bxd8 {[%emt 0:00:04]} 43. Rf8# {[%emt 0:00:01]} 1-0

[Event "2nd FIDE WCC Rapid G10"]
[Site "Minsk"]
[Date "2018.06.22"]
[Round "2"]
[White "Shukhman, Anna"]
[Black "Trifonova, Daria"]
[Result "1-0"]
[ECO "B01"]
[WhiteElo "1577"]
[BlackElo "1129"]
[Annotator "NA RC"]
[PlyCount "79"]
[EventDate "2018.06.22"]
[EventType "rapid"]
[EventCountry "BLR"]
[SourceTitle "playchess.com"]
[Source "ChessBase"]
[SourceQuality "1"]
[TimeControl "600+5"]

1. e4 {[%emt 0:00:00]} d5 {[%emt 0:00:01]} 2. exd5 {[%emt 0:00:00]} Nf6 {[%emt 0:00:02]} 3. Bb5+ {[%emt 0:00:00]} c6 {[%emt 0:00:05]} 4. dxc6 {[%emt 0:00:04]} Nxc6 {[%emt 0:00:01]} 5. Nf3 {[%emt 0:00:03]} Qb6 {[%emt 0:00:05]} 6. Bxc6+ {[%emt 0:00:07]} Qxc6 {[%emt 0:00:03]} 7. d4 {[%emt 0:00:44]} Bg4 {[%emt 0:00:06]} 8. Nbd2 {[%emt 0:00:05]} e6 {[%emt 0:00:07]} 9. O-O {[%emt 0:00:03]} Be7 {[%emt 0:00:03]} 10. c3 {[%emt 0:00:16]} O-O {[%emt 0:00:03]} 11. Qb3 {[%emt 0:00:16]} Bd6 {[%emt 0:00:40]} 12. h3 {[%emt 0:00:32]} Bh5 {[%emt 0:00:03]} 13. Re1 {[%emt 0:00:52]} Rfe8 {[%emt 0:00:17]} 14. Ne5 {[%emt 0:00:15]} Bxe5 {[%emt 0:00:02]} 15. dxe5 {[%emt 0:00:01]} Nd5 {[%emt 0:00:08]} 16. Ne4 {[%emt 0:00:16]} Bg6 {[%emt 0:00:10]} 17. Nd6 {[%emt 0:00:52]} Reb8 {[%emt 0:00:03]} 18. c4 {[%emt 0:00:32]} Nb6 {[%emt 0:00:13]} 19. Bf4 {[%emt 0:00:07]} Rc8 {[%emt 0:00:07]} 20. Nxc8 {[%emt 0:00:03]} Rxc8 {[%emt 0:00:01]} 21. Rac1 {[%emt 0:00:42]} Be4 {[%emt 0:00:21]} 22. Qg3 {[%emt 0:00:11]} Bg6 {[%emt 0:00:06]} 23. b3 {[%emt 0:00:04]} h6 {[%emt 0:00:09]} 24. Rcd1 {[%emt 0:00:07]} Kh7 {[%emt 0:00:18]} 25. Rd6 {[%emt 0:00:29]} Qc7 {[%emt 0:00:08]} 26. Red1 {[%emt 0:00:05]} a6 {[%emt 0:00:23]} 27. Qe3 {[%emt 0:00:20]} Na8 {[%emt 0:00:11]} 28. Rd7 {[%emt 0:00:09]} Qc6 {[%emt 0:00:07]} 29. R1d6 {[%emt 0:00:11]} Qc5 {[%emt 0:00:18]} 30. Qxc5 {[%emt 0:00:03]} Rxc5 {[%emt 0:00:03]} 31. Rxb7 {[%emt 0:00:02]} Ra5 {[%emt 0:00:08]} 32. Ra7 {[%emt 0:00:17]} Rxa2 {[%emt 0:00:05]} 33. Rxa8 {[%emt 0:00:04]} Ra3 {[%emt 0:00:03]} 34. Rdd8 {[%emt 0:00:19]} Bf5 {[%emt 0:00:13]} 35. Rh8+ {[%emt 0:00:16]} Kg6 {[%emt 0:00:02]} 36. Bxh6 {[%emt 0:00:26]} gxh6 {[%emt 0:00:38]} 37. Rag8+ {[%emt 0:00:02]} Kh5 {[%emt 0:00:04]} 38. g4+ {[%emt 0:00:01]} Bxg4 {[%emt 0:00:09]} 39. hxg4+ {[%emt 0:00:02]} Kh4 {[%emt 0:00:01]} 40. Rxh6# 1-0

[Event "2nd FIDE WCC Rapid G10"]
[Site "Minsk"]
[Date "2018.06.22"]
[Round "2"]
[White "Gupta, Sara"]
[Black "Nandin-Erdene, Davaademberel"]
[Result "1-0"]
[ECO "B23"]
[WhiteElo "1525"]
[BlackElo "1491"]
[Annotator "NA RC"]
[PlyCount "87"]
[EventDate "2018.06.22"]
[EventType "rapid"]
[EventCountry "BLR"]
[SourceTitle "playchess.com"]
[Source "ChessBase"]
[SourceQuality "1"]
[TimeControl "600+5"]

1. e4 {[%emt 0:00:00]} c5 {[%emt 0:00:01]} 2. Nc3 {[%emt 0:00:00]} Nc6 {[%emt 0:00:01]} 3. f4 {[%emt 0:00:00]} d6 {[%emt 0:00:16]} 4. Nf3 {[%emt 0:00:00]} a6 {[%emt 0:00:06]} 5. a4 {[%emt 0:00:01]} e5 {[%emt 0:00:28]} 6. f5 {[%emt 0:00:26]} Nf6 {[%emt 0:00:03]} 7. Bc4 {[%emt 0:00:16]} Be7 {[%emt 0:00:24]} 8. O-O {[%emt 0:00:10]} O-O {[%emt 0:00:05]} 9. d3 {[%emt 0:00:10]} Nd4 {[%emt 0:00:13]} 10. Nd5 {[%emt 0:00:28]} Nxd5 {[%emt 0:00:47]} 11. Bxd5 {[%emt 0:00:04]} Bf6 {[%emt 0:00:14]} 12. c3 {[%emt 0:00:25]} Nxf3+ {[%emt 0:00:28]} 13. Rxf3 {[%emt 0:00:33]} Rb8 {[%emt 0:00:21]} 14. c4 {[%emt 0:00:31]} Bd7 {[%emt 0:00:05]} 15. Rh3 {[%emt 0:00:36]} h6 {[%emt 0:01:06]} 16. Qg4 {[%emt 0:00:47]} Bg5 {[%emt 0:00:16]} 17. Bxg5 {[%emt 0:00:10]} Qxg5 {[%emt 0:00:01]} 18. Qxg5 {[%emt 0:00:03]} hxg5 {[%emt 0:00:01]} 19. Rg3 {[%emt 0:00:03]} b5 {[%emt 0:00:23]} 20. axb5 {[%emt 0:00:16]} axb5 {[%emt 0:00:01]} 21. b3 {[%emt 0:00:40]} bxc4 {[%emt 0:00:22]} 22. bxc4 {[%emt 0:00:02]} Rb3 {[%emt 0:00:02]} 23. Ra6 {[%emt 0:00:21]} Rb1+ {[%emt 0:00:22]} 24. Kf2 {[%emt 0:00:02]} Rb2+ {[%emt 0:00:02]} 25. Ke1 {[%emt 0:00:33]} Rfb8 {[%emt 0:00:31]} 26. Rxd6 {[%emt 0:00:16]} Rb1+ {[%emt 0:00:01]} 27. Ke2 {[%emt 0:00:03]} R8b2+ {[%emt 0:00:02]} 28. Kf3 {[%emt 0:00:21]} Rf1+ {[%emt 0:00:43]} 29. Ke3 {[%emt 0:00:33]} Rbb1 {[%emt 0:00:14]} 30. Rxd7 {[%emt 0:00:52]} Rbe1+ {[%emt 0:00:01]} 31. Kd2 {[%emt 0:00:01]} Rd1+ {[%emt 0:00:01]} 32. Kc2 {[%emt 0:00:04]} Rc1+ {[%emt 0:00:01]} 33. Kb3 {[%emt 0:00:02]} Rb1+ {[%emt 0:00:07]} 34. Ka4 {[%emt 0:00:01]} Ra1+ {[%emt 0:00:02]} 35. Kb5 {[%emt 0:00:01]} Rfb1+ {[%emt 0:00:02]} 36. Kxc5 {[%emt 0:00:01]} Ra5+ {[%emt 0:00:58]} 37. Kc6 {[%emt 0:00:19]} Ra6+ {[%emt 0:00:07]} 38. Kc7 {[%emt 0:00:03]} Ra7+ {[%emt 0:00:56]} 39. Kc8 {[%emt 0:00:02]} Rb8+ {[%emt 0:00:31]} 40. Kxb8 {[%emt 0:00:02]} Rxd7 {[%emt 0:00:01]} 41. c5 {[%emt 0:00:12]} Kf8 {[%emt 0:00:04]} 42. c6 {[%emt 0:00:01]} Rd8+ {[%emt 0:00:37]} 43. Kb7 {[%emt 0:00:05]} Ke8 {[%emt 0:00:10]} 44. c7 {[%emt 0:00:06]} 1-0